bitfinex-derivatives/quotes_SOLF0:USTF0_20241203
["timestamp","ask_amount","ask_price","bid_price","bid_amount"]
[1733253660178,1.2835,226.01,225.87,18.25067921]
[1733253660377,1.3327,226.02,225.87,18.25067921]
[1733253660378,2.32,226.0,225.87,18.25067921]
[1733253660568,2.212,225.97,225.87,18.25067921]
[1733253660973,2.32,225.96,225.87,18.25067921]
[1733253661175,2.32,225.96,225.92,2.2123]
[1733253661387,2.32,226.0,225.91,18.25067921]
[1733253661579,2.32,226.01,225.95,18.25067921]
[1733253661779,2.32,226.02,225.95,18.25067921]
[1733253662080,2.32,226.03,225.96,1.3814]
[1733253662580,2.32,226.03,225.92,1.3765]
[1733253664091,2.2111,226.06,225.97,2.2119]
[1733253664444,2.32,226.05,225.98,2.6713]
[1733253664686,2.32,226.04,225.98,2.6713]
[1733253666584,2.32,226.07,225.99,18.25067921]
[1733253666977,2.2109,226.08,226.04,2.2112]
[1733253667176,2.32,226.07,226.04,2.2112]
[1733253667582,2.32,226.07,226.01,2.2115]
[1733253667786,2.32,226.07,225.99,18.25067921]
[1733253668587,2.32,226.07,225.98,2.6713]
[1733253669781,4.531,226.07,225.98,2.6713]
[1733253670779,2.32,226.07,225.98,2.6713]
[1733253670975,2.32,226.07,225.99,2.2117]
[1733253671188,2.2116,226.01,225.98,2.6713]
[1733253671497,2.2116,226.01,225.92,1.3765]
[1733253671498,2.32,226.01,225.95,2.2121]
[1733253671684,2.32,226.01,225.92,1.3765]
[1733253671877,2.2121,225.96,225.92,1.3765]
[1733253672091,4.5321,225.96,225.92,1.3765]
[1733253672378,2.32,225.96,225.92,1.3765]
[1733253672778,2.2122,225.95,225.92,1.3765]
[1733253673285,4.532,225.96,225.92,1.3765]
[1733253674087,2.2121,225.95,225.92,1.3765]
[1733253674783,2.2123,225.93,225.92,1.3765]
[1733253674995,2.2123,225.93,225.86,19.56047921]
[1733253675287,2.2122,225.95,225.91,2.2125]
[1733253675596,2.32,225.95,225.9,18.25067921]
[1733253675788,1.3602,226.05,225.9,18.25067921]
[1733253676085,2.32,226.04,225.94,18.25067921]
[1733253676287,2.32,226.04,225.95,1.2762]
[1733253676685,2.32,226.04,225.96,1.3333]
[1733253678084,2.2115,226.02,225.96,3.5453]
[1733253678279,2.32,226.04,225.96,1.3333]
[1733253678688,2.32,226.04,225.96,3.5452]
[1733253679485,2.2116,226.01,225.97,2.2119]
[1733253681089,2.2118,225.98,225.94,2.2122]
[1733253681285,2.3,225.97,225.9,18.25067921]
[1733253681687,2.3,225.97,225.92,2.2123]
[1733253682222,2.2122,225.95,225.9,18.25067921]
[1733253682381,2.3,225.97,225.88,2.2127]
[1733253682579,2.3,225.97,225.87,1.3979]
[1733253682782,2.2122,225.94,225.87,1.3979]
[1733253683486,2.3,225.97,225.87,1.3979]
[1733253683893,2.2123,225.93,225.87,1.3979]
[1733253684194,2.3,225.92,225.89,2.2126]
[1733253684392,2.3,225.92,225.87,1.3979]
[1733253685597,4.5125,225.92,225.88,2.2128]
[1733253686103,2.3,225.92,225.87,1.3979]
[1733253686293,2.3,225.92,225.86,1.3317]
[1733253686796,2.3,225.92,225.81,19.57297921]
[1733253687201,2.2129,225.88,225.81,19.57297921]
[1733253687397,2.3,225.87,225.81,19.57297921]
[1733253687796,4.5129,225.87,225.83,2.2133]
[1733253688194,4.5129,225.87,225.81,21.78637921]
[1733253688195,2.213,225.86,225.81,21.78637921]
[1733253688503,2.3,225.87,225.81,19.57297921]
[1733253688999,2.3,225.87,225.82,2.2134]
[1733253689498,2.3,225.87,225.79,1.3869]
[1733253689897,2.3,225.87,225.74,1.3662]
[1733253690301,2.3,225.87,225.76,2.2139]
[1733253690602,2.3,225.87,225.74,1.3662]
[1733253690896,2.3,225.87,225.73,1.3076]
[1733253691504,2.3,225.87,225.73,3.5218]
[1733253691701,2.3,225.87,225.73,1.3076]
[1733253691901,2.2132,225.85,225.78,2.2138]
[1733253692112,0.5983,225.89,225.73,1.3076]
[1733253692295,59.71067921,225.94,225.73,1.3076]
[1733253692296,2.3,225.88,225.76,18.25067921]
[1733253692620,41.46,225.94,225.8,18.25067921]
[1733253692805,2.3,225.93,225.84,18.25067921]
[1733253693203,2.3,225.93,225.89,2.2127]
[1733253693399,41.46,225.94,225.85,1.2777]
[1733253693613,2.3,225.95,225.9,2.2126]
[1733253694000,2.3,225.95,225.88,18.25067921]
[1733253694206,2.3,225.95,225.9,2.2126]
[1733253694404,2.3,225.95,225.88,18.25067921]
[1733253694909,2.3,225.95,225.92,2.2123]
[1733253695306,2.2116,226.01,225.88,18.25067921]
[1733253695498,2.3,226.0,225.88,18.25067921]
[1733253695704,2.3,225.99,225.88,18.25067921]
[1733253695900,2.3,225.98,225.88,18.25067921]
[1733253696110,2.3,225.97,225.95,2.2121]
[1733253696310,2.3,225.97,225.88,18.25067921]
[1733253697299,2.2122,225.95,225.88,2.2128]
[1733253697504,2.3,225.97,225.85,1.2777]
[1733253699006,2.5731,226.1,225.88,18.25067921]
[1733253699007,18.25067921,226.06,225.88,18.25067921]
[1733253699201,2.2113,226.04,225.97,2.2118]
[1733253699422,20.82377921,226.1,225.92,18.25067921]
[1733253699423,2.3,226.03,225.92,18.25067921]
[1733253699624,2.3,226.02,225.93,2.7651]
[1733253699878,2.3,226.02,226.0,2.2116]
[1733253700308,2.3,226.02,226.01,2.2115]
[1733253702107,42.0583,226.11,225.96,18.25067921]
[1733253702108,2.3,226.06,225.96,18.25067921]
[1733253702409,2.3,226.06,226.05,2.2111]
[1733253702615,41.46,226.11,226.0,18.25067921]
[1733253702803,41.46,226.11,226.07,2.2109]
[1733253703005,1.882,226.2,226.0,18.25067921]
[1733253703006,2.3,226.1,226.0,18.25067921]
[1733253703207,1.882,226.2,226.04,18.25067921]
[1733253703208,2.3,226.11,226.04,18.25067921]
[1733253703400,1.882,226.2,226.09,2.2107]
[1733253703606,2.3,226.19,226.09,2.2107]
[1733253703803,2.2101,226.16,226.04,18.25067921]
[1733253704008,2.3,226.19,226.04,18.25067921]
[1733253704607,2.3,226.19,226.0,18.25067921]
[1733253704811,2.2105,226.12,226.0,18.25067921]
[1733253705111,2.3,226.11,226.0,18.25067921]
[1733253705515,2.3,226.11,226.03,2.2113]
[1733253705840,2.3,226.11,226.0,18.25067921]
[1733253706408,4.5106,226.11,226.0,18.25067921]
[1733253707216,2.3,226.11,226.0,18.25067921]
[1733253707514,4.5106,226.11,226.0,18.25067921]
[1733253707812,4.5106,226.11,226.03,2.2113]
[1733253708014,4.5106,226.11,226.0,18.25067921]
[1733253708215,2.2107,226.1,226.0,18.25067921]
[1733253708613,2.3,226.11,226.05,2.2111]
[1733253708826,2.3,226.11,226.0,18.25067921]
[1733253709208,1.882,226.2,226.0,18.25067921]
[1733253709209,2.28,226.1,226.0,18.25067921]
[1733253709419,2.28,226.16,226.08,18.25067921]
[1733253709722,2.28,226.21,226.12,18.25067921]
[1733253710518,2.28,226.22,226.12,18.25067921]
[1733253711316,2.28,226.3,226.2,18.25067921]
[1733253711512,2.28,226.29,226.2,18.25067921]
[1733253711913,2.28,226.29,226.23,2.2093]
[1733253712123,2.28,226.32,226.24,18.25067921]
[1733253712415,2.28,226.32,226.31,2.2087]
[1733253712620,2.28,226.32,226.24,18.25067921]
[1733253713521,2.28,226.32,226.26,2.2092]
[1733253713727,2.28,226.32,226.24,18.25067921]
[1733253714419,2.28,226.32,226.22,2.6298]
[1733253715122,2.2088,226.31,226.22,2.6298]
[1733253716323,18.25067921,226.31,226.1,18.25067921]
[1733253717015,2.2093,226.26,226.1,18.25067921]
[1733253717215,18.25067921,226.31,226.14,18.25067921]
[1733253717216,2.28,226.25,226.14,18.25067921]
[1733253717524,2.28,226.24,226.14,18.25067921]
[1733253717724,2.28,226.23,226.14,18.25067921]
[1733253718226,2.28,226.23,226.19,2.2098]
[1733253718415,2.28,226.23,226.14,18.25067921]
[1733253718920,2.28,226.23,226.19,2.2098]
[1733253719122,2.28,226.25,226.18,18.25067921]
[1733253719324,2.28,226.25,226.19,2.6435]
[1733253719925,2.28,226.26,226.24,2.2093]
[1733253720129,2.28,226.27,226.24,2.2093]
[1733253720424,2.28,226.27,226.19,1.2847]
[1733253720922,1.3011,226.34,226.19,1.2847]
[1733253721138,1.3011,226.34,226.22,18.25067921]
[1733253721348,2.28,226.33,226.22,18.25067921]
[1733253721516,41.44,226.39,226.22,18.25067921]
[1733253721719,2.2082,226.37,226.31,2.2087]
[1733253721922,2.2082,226.37,226.26,18.25067921]
[1733253721923,2.28,226.36,226.26,18.25067921]
[1733253722131,2.2087,226.31,226.26,2.2091]
[1733253722325,2.28,226.3,226.2,1.304]
[1733253722587,41.44,226.39,226.2,1.304]
[1733253722588,2.28,226.29,226.2,1.304]
[1733253722726,2.28,226.29,226.25,2.2093]
[1733253723023,2.28,226.29,226.2,1.304]
[1733253723219,2.28,226.29,226.23,2.2094]
[1733253723422,2.28,226.29,226.2,1.304]
[1733253724027,2.28,226.29,226.22,2.2095]
[1733253724325,2.28,226.29,226.2,1.304]
[1733253725024,2.28,226.29,226.19,1.2847]
[1733253726192,2.28,226.29,226.2,2.2098]
[1733253726257,2.28,226.29,226.19,1.2847]
[1733253726629,2.2092,226.26,226.19,1.2847]
[1733253727326,2.2093,226.26,226.19,1.2847]
[1733253727530,2.28,226.29,226.19,1.2847]
[1733253727729,2.28,226.29,226.22,2.2096]
[1733253727925,2.28,226.29,226.12,18.25067921]
[1733253728130,19.61517921,226.28,226.1,2.7381]
[1733253728332,20.20837921,226.28,226.11,2.2106]
[1733253728525,20.20837921,226.28,226.1,2.7381]
[1733253728731,18.25067921,226.24,226.1,1.3756]
[1733253728921,2.2107,226.11,226.06,2.2112]
[1733253729135,2.28,226.1,226.06,2.2112]
[1733253729822,4.4908,226.1,226.05,2.2113]
[1733253730036,2.28,226.1,226.04,19.62627921]
[1733253730331,2.28,226.1,226.04,1.3756]
[1733253731329,2.2103,226.16,226.11,2.2106]
[1733253731656,6.60798082,226.35,226.12,18.25067921]
[1733253731657,2.28,226.17,226.12,18.25067921]
[1733253731832,1.3699,226.27,226.12,18.25067921]
[1733253731833,2.28,226.19,226.12,18.25067921]
[1733253732029,2.28,226.19,226.08,18.25067921]
[1733253732724,2.28,226.19,226.09,1.2792]
[1733253732929,2.28,226.19,226.09,2.6477]
[1733253733230,2.28,226.18,226.09,2.6477]
[1733253735632,2.21,226.16,226.1,2.2105]
[1733253735934,19.62057921,226.27,226.09,1.2792]
[1733253736131,2.2096,226.2,226.09,1.2792]
[1733253736327,2.28,226.19,226.09,1.2792]
[1733253736522,2.28,226.18,226.09,1.2792]
[1733253736833,2.38,226.18,226.09,1.2792]
[1733253737132,1.3699,226.27,226.12,18.25067921]
[1733253737324,2.38,226.26,226.12,18.25067921]
[1733253738325,18.25067921,226.31,226.12,18.25067921]
[1733253738634,2.38,226.3,226.12,18.25067921]
[1733253738832,2.2091,226.26,226.2,2.2096]
[1733253739231,2.38,226.25,226.2,2.2096]
[1733253739428,4.5892,226.24,226.18,2.2097]
[1733253739630,4.5892,226.24,226.12,18.25067921]
[1733253739932,4.5892,226.24,226.15,2.21]
[1733253740131,2.38,226.24,226.16,1.3289]
[1733253740327,2.38,226.24,226.16,19.57957921]
[1733253740537,2.38,226.24,226.2,2.2096]
[1733253740729,2.38,226.24,226.17,1.2698]
[1733253740944,59.65067921,226.35,226.17,1.2698]
[1733253740945,2.2087,226.3,226.2,18.25067921]
[1733253741135,3.3324,226.42,226.2,18.25067921]
[1733253741435,2.38,226.41,226.21,1.3862]
[1733253741636,18.25067921,226.39,226.21,1.3862]
[1733253742133,18.25067921,226.39,226.23,2.2093]
[1733253742327,18.25067921,226.39,226.21,1.3862]
[1733253742529,2.2087,226.3,226.24,2.2091]
[1733253742728,2.38,226.29,226.21,1.3862]
[1733253743036,18.25067921,226.39,226.21,1.3862]
[1733253743233,2.2084,226.33,226.27,2.2088]
[1733253743534,2.2084,226.33,226.23,18.25067921]
[1733253743535,4.5884,226.33,226.23,18.25067921]
[1733253744034,4.5884,226.33,226.26,2.209]
[1733253744337,3.3324,226.42,226.23,18.25067921]
[1733253744525,2.38,226.41,226.28,2.2088]
[1733253744726,2.38,226.41,226.23,18.25067921]
[1733253744925,2.2082,226.35,226.23,18.25067921]
[1733253745231,2.38,226.34,226.23,18.25067921]
[1733253745534,2.38,226.33,226.21,1.3862]
[1733253745840,18.25067921,226.39,226.21,1.3862]
[1733253745841,2.38,226.32,226.21,1.3862]
[1733253746028,2.2088,226.29,226.21,1.3862]
[1733253746232,4.5888,226.29,226.21,1.3862]
[1733253746627,4.5888,226.29,226.25,2.2091]
[1733253746833,2.38,226.29,226.25,2.2091]
[1733253747035,18.25067921,226.39,226.21,1.3862]
[1733253747238,2.38,226.38,226.26,2.2089]
[1733253747431,2.2091,226.25,226.17,1.2698]
[1733253747638,2.38,226.27,226.17,1.2698]
[1733253747839,2.38,226.26,226.18,2.2098]
[1733253748135,2.38,226.29,226.17,1.2698]
[1733253748439,2.38,226.3,226.2,18.25067921]
[1733253748536,2.38,226.31,226.2,18.25067921]
[1733253749040,4.5885,226.31,226.2,18.25067921]
[1733253749339,2.38,226.31,226.2,18.25067921]
[1733253749538,2.2087,226.3,226.2,18.25067921]
[1733253749941,2.38,226.31,226.28,2.2088]
[1733253750140,2.38,226.31,226.2,18.25067921]
[1733253750534,2.209,226.27,226.17,1.2698]
[1733253750839,2.209,226.27,226.18,18.25067921]
[1733253751041,2.38,226.31,226.18,18.25067921]
[1733253752137,2.2091,226.26,226.21,2.2095]
[1733253752339,2.38,226.25,226.21,2.2095]
[1733253752538,2.38,226.24,226.21,2.2095]
[1733253752838,4.5892,226.24,226.2,2.2096]
[1733253753039,2.38,226.24,226.2,2.2096]
[1733253753233,2.38,226.24,226.18,18.25067921]
[1733253755341,2.38,226.24,226.17,1.2698]
[1733253755643,2.38,226.24,226.2,2.2096]
[1733253757740,4.5892,226.24,226.2,2.2096]
[1733253759538,4.5892,226.24,226.17,1.2698]
[1733253759539,2.38,226.24,226.17,1.2698]
[1733253759937,2.38,226.24,226.2,2.2095]
[1733253760640,4.5893,226.24,226.2,2.2095]
[1733253763642,2.38,226.24,226.16,1.3289]
[1733253763839,3.3324,226.42,226.18,18.25067921]
[1733253764038,2.2088,226.29,226.22,18.25067921]
[1733253764237,2.38,226.3,226.22,18.25067921]
[1733253764438,18.25067921,226.41,226.22,18.25067921]
[1733253764639,2.38,226.4,226.22,18.25067921]
[1733253764841,306.17994611,226.53,226.31,18.25067921]
[1733253765041,2.2077,226.41,226.36,2.208]
[1733253765240,2.2077,226.41,226.32,1.3384]
[1733253765455,2.38,226.43,226.32,1.3384]
[1733253766947,2.2079,226.38,226.33,2.2083]
[1733253767143,3.3651,226.52,226.32,1.3384]
[1733253767443,2.36,226.51,226.32,1.3384]
[1733253767643,2.36,226.51,226.35,18.25067921]
[1733253768428,2.36,226.51,226.38,2.2078]
[1733253768744,2.2073,226.44,226.38,2.2078]
[1733253768945,2.7723,226.52,226.36,2.208]
[1733253768946,2.36,226.43,226.36,2.208]
[1733253769444,2.36,226.51,226.41,2.2075]
[1733253769644,2.36,226.51,226.35,18.25067921]
[1733253770446,20.61067921,226.51,226.32,1.3384]
[1733253770641,20.61067921,226.51,226.32,3.5468]
[1733253771048,20.61067921,226.51,226.32,1.3384]
[1733253772142,2.2078,226.39,226.33,2.2083]
[1733253772345,2.36,226.38,226.33,2.2083]
[1733253773942,2.36,226.38,226.32,1.3384]
[1733253774140,4.5679,226.38,226.32,3.5467]
[1733253774941,2.36,226.38,226.29,1.3378]
[1733253775146,2.36,226.38,226.27,18.25067921]
[1733253775339,2.36,226.38,226.23,19.63577921]
[1733253775540,2.2087,226.29,226.23,19.63577921]
[1733253775742,2.36,226.29,226.23,18.25067921]
[1733253776547,4.5688,226.29,226.23,20.45997921]
[1733253776949,2.36,226.29,226.23,20.45997921]
[1733253777144,2.36,226.29,226.23,18.25067921]
[1733253778749,2.209,226.27,226.23,18.25067921]
[1733253779861,2.36,226.29,226.17,1.2774]
[1733253780686,2.36,226.29,226.17,19.52807921]
[1733253781077,2.36,226.29,226.19,2.2097]
[1733253781565,2.209,226.26,226.19,2.2097]
[1733253781770,2.36,226.29,226.19,2.2097]
[1733253781973,2.36,226.29,226.2,2.2095]
[1733253782377,3.1591,226.34,226.21,18.25067921]
[1733253782579,2.36,226.33,226.21,18.25067921]
[1733253782973,2.36,226.33,226.18,3.4751]
[1733253783193,2.36,226.33,226.18,1.2653]
[1733253783386,2.2088,226.29,226.18,1.2653]
[1733253783571,2.36,226.28,226.2,18.25067921]
[1733253783869,2.36,226.27,226.2,18.25067921]
[1733253784076,2.36,226.26,226.2,18.25067921]
[1733253784276,2.36,226.26,226.22,2.2094]
[1733253784482,2.36,226.26,226.2,18.25067921]
[1733253784677,2.2093,226.24,226.2,18.25067921]
[1733253784878,2.36,226.26,226.2,18.25067921]
[1733253785281,4.569,226.26,226.2,18.25067921]
[1733253785491,13.27,226.46,226.2,18.25067921]
[1733253785492,18.25067921,226.43,226.2,18.25067921]
[1733253785691,3.2852,226.41,226.24,18.25067921]
[1733253786120,3.2852,226.41,226.28,18.25067921]
[1733253786121,2.6921,226.41,226.28,18.25067921]
[1733253786510,2.36,226.4,226.29,1.3475]
[1733253786538,2.208,226.37,226.29,1.3475]
[1733253786750,2.36,226.4,226.32,2.2084]
[1733253786774,2.36,226.4,226.29,1.3475]
[1733253787524,2.6921,226.41,226.29,1.3475]
[1733253787702,2.36,226.4,226.29,1.3475]
[1733253787927,2.36,226.39,226.32,18.25067921]
[1733253788085,2.36,226.39,226.34,2.2082]
[1733253788086,2.36,226.38,226.34,2.2082]
[1733253788286,2.36,226.38,226.3,1.3344]
[1733253788984,2.36,226.38,226.35,2.2081]
[1733253789188,2.36,226.38,226.3,1.3344]
[1733253789387,2.36,226.38,226.32,18.25067921]
[1733253790584,2.36,226.38,226.35,2.2081]
[1733253790789,2.36,226.38,226.32,18.25067921]
[1733253791179,4.5679,226.38,226.32,18.25067921]
[1733253791388,2.36,226.38,226.32,18.25067921]
[1733253791878,2.36,226.38,226.3,1.3344]
[1733253792291,2.2081,226.36,226.3,1.3344]
[1733253792596,2.36,226.38,226.3,1.3344]
[1733253793683,2.2083,226.34,226.3,1.3344]
[1733253793889,2.36,226.33,226.3,1.3344]
[1733253794087,2.36,226.33,226.29,1.3475]
[1733253794386,2.36,226.33,226.22,20.86767921]
[1733253794771,2.36,226.33,226.22,2.617]
[1733253794974,2.36,226.33,226.22,1.275]
[1733253795375,2.209,226.26,226.22,1.275]
[1733253795573,2.36,226.25,226.22,1.275]
[1733253796376,4.5691,226.25,226.22,1.275]
[1733253796887,4.5691,226.25,226.18,1.3995]
[1733253797091,2.36,226.25,226.18,1.3995]
[1733253797798,2.36,226.25,226.12,18.25067921]
[1733253798010,2.36,226.25,226.12,19.58517921]
[1733253798184,2.2097,226.19,226.15,2.2101]
[1733253798470,18.25067921,226.31,226.12,19.58517921]
[1733253798471,2.38,226.18,226.12,19.58517921]
[1733253799665,2.38,226.18,226.16,18.25067921]
[1733253799864,2.38,226.23,226.16,18.25067921]
[1733253800564,2.38,226.23,226.18,2.2098]
[1733253800565,4.5893,226.23,226.18,2.2098]
[1733253801069,2.38,226.23,226.22,2.2094]
[1733253801309,3.2746,226.38,226.2,18.25067921]
[1733253801561,2.38,226.37,226.21,1.3042]
[1733253801764,2.2087,226.3,226.21,1.3042]
[1733253801965,2.38,226.29,226.22,1.3526]
[1733253802162,2.38,226.29,226.24,18.25067921]
[1733253803060,2.38,226.29,226.27,2.2089]
[1733253804257,2.38,226.32,226.29,2.2087]
[1733253804661,2.38,226.32,226.22,1.3526]
[1733253804662,2.38,226.32,226.28,18.25067921]
[1733253804962,2.38,226.32,226.3,2.2085]
[1733253805161,2.38,226.32,226.28,18.25067921]
[1733253805462,1.3712,226.44,226.28,18.25067921]
[1733253805463,2.38,226.35,226.28,18.25067921]
[1733253805662,2.38,226.36,226.28,18.25067921]
[1733253805970,2.38,226.36,226.33,2.2083]
[1733253807070,2.38,226.36,226.28,18.25067921]
[1733253807368,1.3578,226.48,226.32,18.25067921]
[1733253807568,2.38,226.47,226.37,18.25067921]
[1733253807976,2.2073,226.44,226.38,2.2078]
[1733253808173,2.38,226.47,226.38,2.2078]
[1733253808967,2.2075,226.42,226.38,2.2078]
[1733253809171,2.38,226.42,226.33,19.53387921]
[1733253809579,4.5875,226.42,226.33,19.53387921]
[1733253810567,4.5875,226.42,226.37,2.2079]
[1733253811274,2.38,226.42,226.38,2.2078]
[1733253812269,2.38,226.42,226.33,18.25067921]
[1733253812468,2.38,226.42,226.3,3.9073]
[1733253812977,2.208,226.37,226.32,2.2084]
[1733253813173,2.38,226.36,226.32,2.2084]
[1733253813873,2.38,226.36,226.3,1.2728]
[1733253814275,2.38,226.36,226.24,18.25067921]
[1733253814576,2.38,226.36,226.25,1.3487]
[1733253814877,2.2085,226.32,226.28,2.2088]
[1733253815075,2.2085,226.32,226.25,1.3487]
[1733253815276,2.38,226.31,226.25,1.3487]
[1733253815550,2.2086,226.3,226.26,2.2089]
[1733253815977,2.2086,226.3,226.24,18.25067921]
[1733253816474,2.38,226.31,226.2,19.53997921]
[1733253816678,2.2087,226.29,226.23,2.2092]
[1733253817177,2.2087,226.29,226.2,19.53997921]
[1733253817378,2.2091,226.25,226.2,19.53997921]
[1733253817594,2.38,226.26,226.2,19.53997921]
[1733253817778,2.38,226.26,226.2,21.74957921]
[1733253818183,2.38,226.26,226.21,2.2095]
[1733253819381,4.589,226.26,226.22,2.2094]
[1733253819586,2.38,226.26,226.2,19.53997921]
[1733253820189,2.38,226.26,226.21,2.2095]
[1733253820387,1.2804,226.4,226.24,18.25067921]
[1733253820600,367.41593533,226.58,226.31,18.25067921]
[1733253820601,2.38,226.48,226.31,18.25067921]
[1733253820830,18.25067921,226.5,226.37,2.2079]
[1733253820831,3.7766,226.47,226.37,2.2079]
[1733253820982,3.7766,226.47,226.28,2.38]
[1733253820983,3.7766,226.47,226.35,18.25067921]
[1733253821396,1.3966,226.47,226.35,18.25067921]
[1733253821589,2.38,226.47,226.39,18.25067921]
[1733253821783,2.2068,226.49,226.43,2.2074]
[1733253821988,1.2667,226.52,226.39,18.25067921]
[1733253822188,1.3966,226.57,226.39,18.25067921]
[1733253822189,2.38,226.51,226.39,18.25067921]
[1733253822497,2.38,226.5,226.39,18.25067921]
[1733253822600,2.38,226.49,226.39,18.25067921]
[1733253822885,2.38,226.48,226.39,18.25067921]
[1733253823684,2.38,226.48,226.4,2.2076]
[1733253823891,2.38,226.48,226.39,18.25067921]
[1733253824195,2.207,226.47,226.41,2.2076]
[1733253824586,2.207,226.47,226.39,18.25067921]
[1733253824989,2.38,226.48,226.39,18.25067921]
[1733253825395,2.38,226.48,226.43,2.2074]
[1733253825595,2.38,226.48,226.39,18.25067921]
[1733253826005,2.38,226.48,226.43,2.2073]
[1733253826999,4.6068,226.49,226.44,2.2073]
[1733253827493,4.6067,226.51,226.46,2.2071]
[1733253827693,2.4,226.51,226.38,18.25067921]
[1733253828200,2.207,226.47,226.42,2.2075]
[1733253828798,2.4,226.51,226.38,18.25067921]
[1733253829604,2.4,226.51,226.39,2.2078]
[1733253829901,2.4,226.51,226.38,18.25067921]
[1733253830692,2.4,226.51,226.34,18.25067921]
[1733253830896,20.65067921,226.51,226.34,18.25067921]
[1733253832004,2.2076,226.41,226.36,2.208]
[1733253832197,2.4,226.41,226.34,18.25067921]
[1733253832501,2.4,226.41,226.36,2.208]
[1733253832901,2.4,226.41,226.34,18.25067921]
[1733253833498,2.4,226.45,226.34,18.25067921]
[1733253833805,2.2073,226.44,226.37,2.2079]
[1733253834104,2.2073,226.44,226.34,18.25067921]
[1733253834604,2.4,226.46,226.34,18.25067921]
[1733253835298,2.2074,226.43,226.38,2.2078]
[1733253837197,2.2074,226.43,226.34,18.25067921]
[1733253837402,2.4,226.46,226.34,18.25067921]
[1733253837804,2.4,226.46,226.37,2.2079]
[1733253838003,2.2075,226.42,226.37,2.2079]
[1733253839002,2.2075,226.42,226.34,18.25067921]
[1733253839407,2.2075,226.42,226.37,2.2079]
[1733253839705,2.2075,226.42,226.34,18.25067921]
[1733253839901,2.2077,226.4,226.34,18.25067921]
[1733253840101,4.6077,226.4,226.35,2.2081]
[1733253840306,4.6077,226.4,226.34,18.25067921]
[1733253840505,2.4,226.4,226.34,18.25067921]
[1733253841021,2.4,226.4,226.36,2.208]
[1733253841498,2.4,226.4,226.34,18.25067921]
[1733253842597,2.4,226.45,226.34,18.25067921]
[1733253842803,2.4,226.45,226.38,18.25067921]
[1733253843005,2.2072,226.46,226.42,2.2074]
[1733253843196,2.2072,226.46,226.38,18.25067921]
[1733253843612,2.2072,226.46,226.42,2.2074]
[1733253845009,2.2076,226.41,226.37,2.2079]
[1733253845208,2.4,226.47,226.36,11.33396205]
[1733253845510,2.2077,226.4,226.36,13.54196205]
[1733253846805,2.4,226.41,226.39,11.33396205]
[1733253847006,2.4,226.41,226.4,2.2077]
[1733253847603,2.4,226.46,226.43,2.2073]
[1733253847811,2.4,226.46,226.43,11.33396205]
[1733253849213,2.4,226.46,226.4,11.33396205]
[1733253849507,2.4,226.46,226.36,2.208]
[1733253849508,2.2074,226.43,226.36,2.208]
[1733253849704,2.2074,226.43,226.35,18.13961666]
[1733253850409,2.4,226.46,226.35,18.13961666]
[1733253850806,2.2074,226.43,226.35,18.13961666]
[1733253851306,2.2074,226.43,226.39,2.2077]
[1733253851509,2.4,226.46,226.35,18.13961666]
[1733253851710,2.2073,226.45,226.41,2.2075]
[1733253851906,2.4,226.46,226.41,2.2075]